[Event "Titled Tuesday Blitz February 28 Late 2023"]
[White "Adel, Sara"]
[Black "Zochowski, Kacper"]
[WhiteFideId "10616764"]
[BlackFideId "1125494"]
[WhiteElo "1997"]
[BlackElo "2222"]
[Result "0-1"]
[Round "03"]
[TimeControl "180+2"]
[Date "2023.02.28"]
[WhiteClock "0:00:14"]
[BlackClock "0:00:14"]

1. e4 {[%clk 0:02:59]}  d6 {[%clk 0:02:49]} 2. Nc3 {[%clk 0:02:58]}  Nf6 {[%clk 0:02:49]} 3. f4 {[%clk 0:02:57]}  e5 {[%clk 0:02:48]} 4. Bc4 {[%clk 0:02:55]}  exf4 {[%clk 0:02:43]} 5. Nf3 {[%clk 0:02:55]}  Bg4 {[%clk 0:02:44]} 6. e5 {[%clk 0:02:40]}  dxe5 {[%clk 0:02:36]} 7. Bxf7+ {[%clk 0:02:39]}  Kxf7 {[%clk 0:02:28]} 8. Nxe5+ {[%clk 0:02:39]}  Kg8 {[%clk 0:02:28]} 9. Nxg4 {[%clk 0:02:38]}  Bc5 {[%clk 0:02:19]} 10. d3 {[%clk 0:02:27]}  h5 {[%clk 0:02:00]} 11. Nxf6+ {[%clk 0:02:23]}  Qxf6 {[%clk 0:02:01]} 12. Qf3 {[%clk 0:02:18]}  Bb4 {[%clk 0:01:32]} 13. Qd5+ {[%clk 0:02:02]}  Kf8 {[%clk 0:01:28]} 14. O-O {[%clk 0:02:00]}  g5 {[%clk 0:01:21]} 15. Qxb7 {[%clk 0:01:59]}  Qb6+ {[%clk 0:01:20]} 16. Qxb6 {[%clk 0:01:55]}  axb6 {[%clk 0:01:21]} 17. Nd5 {[%clk 0:01:55]}  Bd6 {[%clk 0:01:19]} 18. Bd2 {[%clk 0:01:52]}  Nd7 {[%clk 0:01:19]} 19. Bc3 {[%clk 0:01:51]}  Rh6 {[%clk 0:01:16]} 20. g3 {[%clk 0:01:50]}  c6 {[%clk 0:01:14]} 21. gxf4 {[%clk 0:01:48]}  g4 {[%clk 0:01:09]} 22. Ne3 {[%clk 0:01:44]}  Bc5 {[%clk 0:01:08]} 23. d4 {[%clk 0:01:45]}  Be7 {[%clk 0:01:08]} 24. Nf5 {[%clk 0:01:44]}  Rh7 {[%clk 0:01:01]} 25. Rfe1 {[%clk 0:01:35]}  Rf7 {[%clk 0:00:40]} 26. Nxe7 {[%clk 0:01:33]}  Rxe7 {[%clk 0:00:41]} 27. Rxe7 {[%clk 0:01:31]}  Kxe7 {[%clk 0:00:42]} 28. Re1+ {[%clk 0:01:31]}  Kf7 {[%clk 0:00:42]} 29. a3 {[%clk 0:01:28]}  Nf6 {[%clk 0:00:23]} 30. Bb4 {[%clk 0:01:28]}  Nd5 {[%clk 0:00:23]} 31. Bd6 {[%clk 0:01:28]}  Rd8 {[%clk 0:00:20]} 32. Be5 {[%clk 0:01:29]}  b5 {[%clk 0:00:21]} 33. b3 {[%clk 0:01:28]}  Ra8 {[%clk 0:00:14]} 34. c4 {[%clk 0:01:28]}  bxc4 {[%clk 0:00:14]} 35. bxc4 {[%clk 0:01:28]}  Nb6 {[%clk 0:00:15]} 36. c5 {[%clk 0:01:26]}  Nd5 {[%clk 0:00:16]} 37. Ra1 {[%clk 0:01:25]}  Ra4 {[%clk 0:00:15]} 38. Kf2 {[%clk 0:01:24]}  Ke6 {[%clk 0:00:16]} 39. Ke2 {[%clk 0:01:24]}  Kf5 {[%clk 0:00:17]} 40. Kd3 {[%clk 0:01:23]}  h4 {[%clk 0:00:17]} 41. Kc2 {[%clk 0:01:20]}  g3 {[%clk 0:00:17]} 42. hxg3 {[%clk 0:01:20]}  hxg3 {[%clk 0:00:18]} 43. Kb3 {[%clk 0:01:20]}  Ra7 {[%clk 0:00:17]} 44. a4 {[%clk 0:01:18]}  g2 {[%clk 0:00:17]} 45. Rg1 {[%clk 0:01:16]}  Ne3 {[%clk 0:00:17]} 46. d5 {[%clk 0:01:05]}  Rb7+ {[%clk 0:00:17]} 47. Kc3 {[%clk 0:00:59]}  Nxd5+ {[%clk 0:00:17]} 48. Kd4 {[%clk 0:01:00]}  Rb2 {[%clk 0:00:14]} 49. a5 {[%clk 0:00:56]}  Ra2 {[%clk 0:00:15]} 50. a6 {[%clk 0:00:54]}  Nxf4 {[%clk 0:00:15]} 51. Bxf4 {[%clk 0:00:49]}  Kxf4 {[%clk 0:00:16]} 52. a7 {[%clk 0:00:46]}  Kf3 {[%clk 0:00:16]} 53. Ke5 {[%clk 0:00:41]}  Rxa7 {[%clk 0:00:12]} 54. Kd6 {[%clk 0:00:39]}  Ra6 {[%clk 0:00:13]} 55. Rb1 {[%clk 0:00:36]}  Kf2 {[%clk 0:00:10]} 56. Rb2+ {[%clk 0:00:36]}  Kg3 {[%clk 0:00:11]} 57. Rb3+ {[%clk 0:00:35]}  Kh2 {[%clk 0:00:11]} 58. Rb2 {[%clk 0:00:36]}  Kh1 {[%clk 0:00:11]} 59. Rxg2 {[%clk 0:00:28]}  Kxg2 {[%clk 0:00:12]} 60. Kc7 {[%clk 0:00:29]}  Kf3 {[%clk 0:00:12]} 61. Kb7 {[%clk 0:00:30]}  Ke4 {[%clk 0:00:11]} 62. Kxa6 {[%clk 0:00:30]}  Kd4 {[%clk 0:00:11]} 63. Ka5 {[%clk 0:00:12]}  Kxc5 {[%clk 0:00:11]} 64. Ka4 {[%clk 0:00:12]}  Kc4 {[%clk 0:00:12]} 65. Ka3 {[%clk 0:00:13]}  Kc3 {[%clk 0:00:13]} 66. Ka2 {[%clk 0:00:14]}  Kc2 {[%clk 0:00:13]} 67. Ka1 {[%clk 0:00:14]}  c5 {[%clk 0:00:14]} 0-1


[Site "https://www.chess.com"]

[Event "Titled Tuesday Blitz February 28 Late 2023"]
[White "Marcolino, Daniel Mattos"]
[Black "Martin Carmona, Gaston Manuel"]
[WhiteFideId "2106841"]
[BlackFideId "22284567"]
[WhiteElo "2116"]
[BlackElo "2245"]
[Result "0-1"]
[Round "03"]
[TimeControl "180+2"]
[Date "2023.02.28"]
[WhiteClock "0:00:02"]
[BlackClock "0:00:54"]

1. d4 {[%clk 0:03:00]}  Nf6 {[%clk 0:02:59]} 2. Nf3 {[%clk 0:03:01]}  g6 {[%clk 0:02:56]} 3. g3 {[%clk 0:03:01]}  c5 {[%clk 0:02:56]} 4. d5 {[%clk 0:02:54]}  Bg7 {[%clk 0:02:57]} 5. Bg2 {[%clk 0:02:53]}  O-O {[%clk 0:02:57]} 6. O-O {[%clk 0:02:53]}  b5 {[%clk 0:02:58]} 7. c3 {[%clk 0:02:48]}  Bb7 {[%clk 0:02:57]} 8. Ne1 {[%clk 0:02:31]}  Na6 {[%clk 0:02:55]} 9. e4 {[%clk 0:02:29]}  e6 {[%clk 0:02:54]} 10. dxe6 {[%clk 0:02:21]}  fxe6 {[%clk 0:02:53]} 11. Bg5 {[%clk 0:02:19]}  Qc8 {[%clk 0:02:46]} 12. Nd2 {[%clk 0:02:02]}  b4 {[%clk 0:02:40]} 13. cxb4 {[%clk 0:01:44]}  Nxb4 {[%clk 0:02:29]} 14. Nb3 {[%clk 0:01:40]}  d5 {[%clk 0:02:27]} 15. a3 {[%clk 0:01:27]}  Na6 {[%clk 0:02:24]} 16. Rc1 {[%clk 0:01:26]}  Nxe4 {[%clk 0:02:22]} 17. Be3 {[%clk 0:01:13]}  Bxb2 {[%clk 0:02:21]} 18. Rc2 {[%clk 0:00:37]}  Bxa3 {[%clk 0:02:21]} 19. Bxe4 {[%clk 0:00:26]}  dxe4 {[%clk 0:02:20]} 20. Bh6 {[%clk 0:00:25]}  Rf5 {[%clk 0:02:19]} 21. Qa1 {[%clk 0:00:24]}  e5 {[%clk 0:02:07]} 22. Qxa3 {[%clk 0:00:24]}  Rh5 {[%clk 0:02:05]} 23. Be3 {[%clk 0:00:18]}  Qh3 {[%clk 0:02:04]} 24. f4 {[%clk 0:00:18]}  exf3 {[%clk 0:02:02]} 25. Nxf3 {[%clk 0:00:15]}  Rf8 {[%clk 0:02:00]} 26. Nxc5 {[%clk 0:00:13]}  Bxf3 {[%clk 0:01:55]} 27. Nxa6 {[%clk 0:00:09]}  Rhf5 {[%clk 0:01:19]} 28. Rcf2 {[%clk 0:00:09]}  e4 {[%clk 0:01:15]} 29. Qb3+ {[%clk 0:00:08]}  Kg7 {[%clk 0:01:14]} 30. Bd4+ {[%clk 0:00:08]}  Kh6 {[%clk 0:01:14]} 31. Qe3+ {[%clk 0:00:09]}  g5 {[%clk 0:01:14]} 32. Nc7 {[%clk 0:00:07]}  Kg6 {[%clk 0:01:04]} 33. Ne6 {[%clk 0:00:07]}  Re8 {[%clk 0:01:04]} 34. Nc5 {[%clk 0:00:06]}  g4 {[%clk 0:01:01]} 35. Nd3 {[%clk 0:00:06]}  Ref8 {[%clk 0:00:55]} 36. Nf4+ {[%clk 0:00:06]}  Rxf4 {[%clk 0:00:55]} 37. gxf4 {[%clk 0:00:04]}  Rf5 {[%clk 0:00:55]} 38. Be5 {[%clk 0:00:03]}  Rh5 {[%clk 0:00:55]} 39. Qxa7 {[%clk 0:00:02]}  Qg3+ {[%clk 0:00:54]} 0-1


[Site "https://www.chess.com"]

[Event "Titled Tuesday Blitz February 28 Late 2023"]
[White "Vanek, Tomas"]
[Black "Principe, Gerson"]
[WhiteFideId "313459"]
[BlackFideId "3804550"]
[WhiteElo "2052"]
[BlackElo "2229"]
[Result "0-1"]
[Round "03"]
[TimeControl "180+2"]
[Date "2023.02.28"]
[WhiteClock "0:00:05"]
[BlackClock "0:00:04"]

1. g3 {[%clk 0:03:00]}  Nf6 {[%clk 0:02:56]} 2. c4 {[%clk 0:02:57]}  c6 {[%clk 0:02:55]} 3. Bg2 {[%clk 0:02:56]}  d5 {[%clk 0:02:56]} 4. d4 {[%clk 0:02:56]}  e6 {[%clk 0:02:54]} 5. Nf3 {[%clk 0:02:55]}  Nbd7 {[%clk 0:02:51]} 6. O-O {[%clk 0:02:55]}  Be7 {[%clk 0:02:41]} 7. Nbd2 {[%clk 0:02:42]}  O-O {[%clk 0:02:38]} 8. Qc2 {[%clk 0:02:37]}  b5 {[%clk 0:02:37]} 9. c5 {[%clk 0:02:28]}  e5 {[%clk 0:01:46]} 10. dxe5 {[%clk 0:02:23]}  Ng4 {[%clk 0:01:45]} 11. Nd4 {[%clk 0:01:54]}  Bb7 {[%clk 0:01:35]} 12. e6 {[%clk 0:01:53]}  Nxc5 {[%clk 0:01:30]} 13. exf7+ {[%clk 0:01:52]}  Rxf7 {[%clk 0:01:29]} 14. b4 {[%clk 0:01:50]}  Na4 {[%clk 0:01:18]} 15. Bh3 {[%clk 0:01:49]}  Bf6 {[%clk 0:01:03]} 16. N2b3 {[%clk 0:01:43]}  Bxd4 {[%clk 0:00:25]} 17. Nxd4 {[%clk 0:01:42]}  Qf6 {[%clk 0:00:26]} 18. e3 {[%clk 0:01:36]}  h5 {[%clk 0:00:20]} 19. f3 {[%clk 0:01:35]}  Ne5 {[%clk 0:00:18]} 20. Be6 {[%clk 0:01:30]}  Nc4 {[%clk 0:00:17]} 21. Qf5 {[%clk 0:01:06]}  Qxf5 {[%clk 0:00:13]} 22. Nxf5 {[%clk 0:01:06]}  Rf8 {[%clk 0:00:08]} 23. e4 {[%clk 0:00:58]}  Kh7 {[%clk 0:00:07]} 24. Bxf7 {[%clk 0:00:55]}  Rxf7 {[%clk 0:00:08]} 25. Bf4 {[%clk 0:00:54]}  Nc3 {[%clk 0:00:06]} 26. Kg2 {[%clk 0:00:42]}  dxe4 {[%clk 0:00:03]} 27. Nd6 {[%clk 0:00:39]}  Nxd6 {[%clk 0:00:01]} 28. Bxd6 {[%clk 0:00:39]}  e3 {[%clk 0:00:01]} 29. Bc5 {[%clk 0:00:35]}  Nd5 {[%clk 0:00:02]} 30. Rfe1 {[%clk 0:00:34]}  Bc8 {[%clk 0:00:02]} 31. a4 {[%clk 0:00:29]}  a6 {[%clk 0:00:03]} 32. axb5 {[%clk 0:00:28]}  axb5 {[%clk 0:00:03]} 33. Ra8 {[%clk 0:00:27]}  Bf5 {[%clk 0:00:04]} 34. Bxe3 {[%clk 0:00:24]}  Bd3 {[%clk 0:00:04]} 35. Bc5 {[%clk 0:00:20]}  Bc4 {[%clk 0:00:05]} 36. Rf8 {[%clk 0:00:19]}  Rd7 {[%clk 0:00:05]} 37. Rc8 {[%clk 0:00:18]}  Nf6 {[%clk 0:00:04]} 38. Rxc6 {[%clk 0:00:17]}  Rd2+ {[%clk 0:00:04]} 39. Kg1 {[%clk 0:00:16]}  Bd5 {[%clk 0:00:05]} 40. Rd6 {[%clk 0:00:16]}  Rc2 {[%clk 0:00:05]} 41. Rxd5 {[%clk 0:00:15]}  Nxd5 {[%clk 0:00:05]} 42. Re5 {[%clk 0:00:15]}  Nc3 {[%clk 0:00:04]} 43. Rxh5+ {[%clk 0:00:15]}  Kg6 {[%clk 0:00:05]} 44. Re5 {[%clk 0:00:15]}  Ne2+ {[%clk 0:00:05]} 45. Kg2 {[%clk 0:00:14]}  Nf4+ {[%clk 0:00:05]} 46. Kf1 {[%clk 0:00:14]}  Nd3 {[%clk 0:00:04]} 47. Rd5 {[%clk 0:00:14]}  Nb2 {[%clk 0:00:02]} 48. Rd6+ {[%clk 0:00:14]}  Kh7 {[%clk 0:00:03]} 49. Bd4 {[%clk 0:00:14]}  Nc4 {[%clk 0:00:02]} 50. Rd7 {[%clk 0:00:14]}  Rxh2 {[%clk 0:00:02]} 51. Rxg7+ {[%clk 0:00:13]}  Kh6 {[%clk 0:00:03]} 52. g4 {[%clk 0:00:13]}  Rd2 {[%clk 0:00:02]} 53. Bf6 {[%clk 0:00:12]}  Rd6 {[%clk 0:00:01]} 54. g5+ {[%clk 0:00:12]}  Kh5 {[%clk 0:00:01]} 55. Rh7+ {[%clk 0:00:13]}  Kg6 {[%clk 0:00:01]} 56. Rh6+ {[%clk 0:00:13]}  Kf5 {[%clk 0:00:01]} 57. Bc3 {[%clk 0:00:12]}  Rd3 {[%clk 0:00:01]} 58. Rc6 {[%clk 0:00:11]}  Rxc3 {[%clk 0:00:01]} 59. Rc5+ {[%clk 0:00:12]}  Kg6 {[%clk 0:00:01]} 60. Rxb5 {[%clk 0:00:12]}  Rxf3+ {[%clk 0:00:01]} 61. Kg2 {[%clk 0:00:12]}  Rb3 {[%clk 0:00:01]} 62. Rc5 {[%clk 0:00:12]}  Ne3+ {[%clk 0:00:01]} 63. Kf2 {[%clk 0:00:11]}  Nf5 {[%clk 0:00:02]} 64. Rc6+ {[%clk 0:00:11]}  Kxg5 {[%clk 0:00:02]} 65. Rb6 {[%clk 0:00:11]}  Kf4 {[%clk 0:00:02]} 66. Kg2 {[%clk 0:00:11]}  Ne3+ {[%clk 0:00:02]} 67. Kf2 {[%clk 0:00:10]}  Rb2+ {[%clk 0:00:02]} 68. Ke1 {[%clk 0:00:09]}  Kf3 {[%clk 0:00:02]} 69. Rf6+ {[%clk 0:00:08]}  Ke4 {[%clk 0:00:02]} 70. Re6+ {[%clk 0:00:08]}  Kd4 {[%clk 0:00:03]} 71. Re8 {[%clk 0:00:08]}  Rxb4 {[%clk 0:00:02]} 72. Ke2 {[%clk 0:00:08]}  Rb2+ {[%clk 0:00:02]} 73. Kf3 {[%clk 0:00:08]}  Nd5 {[%clk 0:00:03]} 74. Rd8 {[%clk 0:00:08]}  Rb3+ {[%clk 0:00:03]} 75. Kf2 {[%clk 0:00:08]}  Rh3 {[%clk 0:00:03]} 76. Kg2 {[%clk 0:00:08]}  Rd3 {[%clk 0:00:03]} 77. Kf2 {[%clk 0:00:08]}  Kc3 {[%clk 0:00:03]} 78. Rc8+ {[%clk 0:00:08]}  Kd2 {[%clk 0:00:03]} 79. Kg2 {[%clk 0:00:07]}  Ne3+ {[%clk 0:00:02]} 80. Kf3 {[%clk 0:00:07]}  Nc2+ {[%clk 0:00:03]} 81. Ke4 {[%clk 0:00:07]}  Re3+ {[%clk 0:00:04]} 82. Kd5 {[%clk 0:00:07]}  Rd3+ {[%clk 0:00:04]} 83. Ke6 {[%clk 0:00:07]}  Ne3 {[%clk 0:00:05]} 84. Rc7 {[%clk 0:00:07]}  Ke2 {[%clk 0:00:06]} 85. Rd7 {[%clk 0:00:07]}  Rc3 {[%clk 0:00:06]} 86. Kf6 {[%clk 0:00:07]}  Rc5 {[%clk 0:00:06]} 87. Ke7 {[%clk 0:00:08]}  Rc6 {[%clk 0:00:06]} 88. Ke8 {[%clk 0:00:07]}  Kf3 {[%clk 0:00:05]} 89. Rf7+ {[%clk 0:00:07]}  Ke4 {[%clk 0:00:04]} 90. Re7+ {[%clk 0:00:08]}  Kd4 {[%clk 0:00:04]} 91. Rd7+ {[%clk 0:00:08]}  Nd5 {[%clk 0:00:05]} 92. Rh7 {[%clk 0:00:08]}  Ke5 {[%clk 0:00:05]} 93. Rh5+ {[%clk 0:00:07]}  Kd4 {[%clk 0:00:05]} 94. Rh4+ {[%clk 0:00:07]}  Kc5 {[%clk 0:00:06]} 95. Rh1 {[%clk 0:00:06]}  Rg6 {[%clk 0:00:04]} 96. Rd1 {[%clk 0:00:05]}  Kd6 {[%clk 0:00:05]} 97. Kd8 {[%clk 0:00:05]}  Rg8# {[%clk 0:00:04]} 0-1


[Site "https://www.chess.com"]

[Event "Titled Tuesday Blitz February 28 Late 2023"]
[White "Blomqvist, Erik"]
[Black "Sarkar, Justin"]
[WhiteFideId "1709437"]
[BlackFideId "2010011"]
[WhiteElo "2436"]
[BlackElo "2189"]
[Result "1-0"]
[Round "03"]
[TimeControl "180+2"]
[Date "2023.02.28"]
[WhiteClock "0:01:43"]
[BlackClock "0:00:01"]

1. e4 {[%clk 0:03:00]}  e5 {[%clk 0:02:52]} 2. Nf3 {[%clk 0:02:58]}  Nc6 {[%clk 0:02:51]} 3. Bb5 {[%clk 0:02:56]}  a6 {[%clk 0:02:47]} 4. Ba4 {[%clk 0:02:56]}  Nf6 {[%clk 0:02:46]} 5. O-O {[%clk 0:02:56]}  Nxe4 {[%clk 0:02:46]} 6. Re1 {[%clk 0:02:53]}  Nc5 {[%clk 0:02:44]} 7. Bxc6 {[%clk 0:02:50]}  dxc6 {[%clk 0:02:43]} 8. Nxe5 {[%clk 0:02:48]}  Be7 {[%clk 0:02:42]} 9. d4 {[%clk 0:02:48]}  Ne6 {[%clk 0:02:42]} 10. Be3 {[%clk 0:02:48]}  O-O {[%clk 0:02:40]} 11. c4 {[%clk 0:02:49]}  f6 {[%clk 0:02:38]} 12. Nf3 {[%clk 0:02:48]}  f5 {[%clk 0:02:27]} 13. Nc3 {[%clk 0:02:34]}  f4 {[%clk 0:02:05]} 14. Bd2 {[%clk 0:02:34]}  Bf6 {[%clk 0:01:54]} 15. d5 {[%clk 0:02:20]}  Nd4 {[%clk 0:01:31]} 16. Bxf4 {[%clk 0:01:56]}  Nxf3+ {[%clk 0:01:27]} 17. Qxf3 {[%clk 0:01:55]}  Bxc3 {[%clk 0:01:00]} 18. bxc3 {[%clk 0:01:46]}  g5 {[%clk 0:00:52]} 19. dxc6 {[%clk 0:01:47]}  Rxf4 {[%clk 0:00:06]} 20. cxb7 {[%clk 0:01:46]}  Bxb7 {[%clk 0:00:03]} 21. Qxb7 {[%clk 0:01:45]}  Rxc4 {[%clk 0:00:01]} 22. Rad1 {[%clk 0:01:43]} 1-0


[Site "https://www.chess.com"]

[Event "Titled Tuesday Blitz February 28 Late 2023"]
[White "Petukhov, Dmitry"]
[Black "Gatterer, Florian"]
[WhiteFideId "4142748"]
[BlackFideId "811688"]
[WhiteElo "2311"]
[BlackElo "2221"]
[Result "1-0"]
[Round "03"]
[TimeControl "180+2"]
[Date "2023.02.28"]
[WhiteClock "0:00:23"]
[BlackClock "0:00:11"]

1. e4 {[%clk 0:03:00]}  c5 {[%clk 0:02:59]} 2. c3 {[%clk 0:03:00]}  Nf6 {[%clk 0:02:55]} 3. e5 {[%clk 0:03:00]}  Nd5 {[%clk 0:02:55]} 4. d4 {[%clk 0:03:01]}  cxd4 {[%clk 0:02:55]} 5. Nf3 {[%clk 0:03:02]}  Nc6 {[%clk 0:02:54]} 6. Bc4 {[%clk 0:03:02]}  Nb6 {[%clk 0:02:54]} 7. Bb3 {[%clk 0:03:02]}  d5 {[%clk 0:02:54]} 8. exd6 {[%clk 0:03:03]}  Qxd6 {[%clk 0:02:54]} 9. O-O {[%clk 0:03:04]}  d3 {[%clk 0:02:34]} 10. Na3 {[%clk 0:03:00]}  Bf5 {[%clk 0:02:32]} 11. Nb5 {[%clk 0:02:57]}  Qd8 {[%clk 0:02:31]} 12. Bf4 {[%clk 0:02:37]}  Rc8 {[%clk 0:02:30]} 13. Re1 {[%clk 0:02:25]}  e6 {[%clk 0:02:29]} 14. Nfd4 {[%clk 0:02:20]}  Nxd4 {[%clk 0:02:12]} 15. Nxd4 {[%clk 0:02:21]}  Be7 {[%clk 0:01:46]} 16. Nxf5 {[%clk 0:02:03]}  exf5 {[%clk 0:01:46]} 17. Bg5 {[%clk 0:01:51]}  Rc7 {[%clk 0:01:37]} 18. Bxe7 {[%clk 0:01:38]}  Rxe7 {[%clk 0:01:37]} 19. Rxe7+ {[%clk 0:01:36]}  Qxe7 {[%clk 0:01:28]} 20. Qxd3 {[%clk 0:01:35]}  O-O {[%clk 0:01:15]} 21. Qxf5 {[%clk 0:01:33]}  Qe2 {[%clk 0:01:11]} 22. Qc2 {[%clk 0:01:19]}  Qe5 {[%clk 0:01:10]} 23. Rd1 {[%clk 0:01:10]}  g6 {[%clk 0:01:08]} 24. h3 {[%clk 0:01:10]}  Kg7 {[%clk 0:01:07]} 25. Qd3 {[%clk 0:01:09]}  Re8 {[%clk 0:01:03]} 26. Qf3 {[%clk 0:00:50]}  Re7 {[%clk 0:00:59]} 27. g3 {[%clk 0:00:41]}  h5 {[%clk 0:00:48]} 28. h4 {[%clk 0:00:41]}  Qe2 {[%clk 0:00:44]} 29. Qxe2 {[%clk 0:00:37]}  Rxe2 {[%clk 0:00:45]} 30. Rb1 {[%clk 0:00:38]}  a5 {[%clk 0:00:44]} 31. Kf1 {[%clk 0:00:39]}  Rd2 {[%clk 0:00:44]} 32. Ke1 {[%clk 0:00:39]}  Rd7 {[%clk 0:00:43]} 33. Rd1 {[%clk 0:00:39]}  Re7+ {[%clk 0:00:43]} 34. Kf1 {[%clk 0:00:40]}  a4 {[%clk 0:00:43]} 35. Bc2 {[%clk 0:00:40]}  Nc4 {[%clk 0:00:43]} 36. b3 {[%clk 0:00:40]}  axb3 {[%clk 0:00:43]} 37. axb3 {[%clk 0:00:41]}  Nb6 {[%clk 0:00:35]} 38. Rd4 {[%clk 0:00:36]}  Rc7 {[%clk 0:00:33]} 39. c4 {[%clk 0:00:35]}  Nc8 {[%clk 0:00:31]} 40. Be4 {[%clk 0:00:33]}  Ne7 {[%clk 0:00:30]} 41. Bd5 {[%clk 0:00:33]}  Nc8 {[%clk 0:00:19]} 42. Ke2 {[%clk 0:00:30]}  Nd6 {[%clk 0:00:18]} 43. Kd3 {[%clk 0:00:29]}  Nf5 {[%clk 0:00:18]} 44. Re4 {[%clk 0:00:29]}  Kf6 {[%clk 0:00:18]} 45. b4 {[%clk 0:00:28]}  b6 {[%clk 0:00:17]} 46. Re1 {[%clk 0:00:24]}  Nd6 {[%clk 0:00:16]} 47. Ra1 {[%clk 0:00:23]}  Nf5 {[%clk 0:00:12]} 48. Ra6 {[%clk 0:00:22]}  Ke5 {[%clk 0:00:11]} 49. Rxb6 {[%clk 0:00:20]}  Nd6 {[%clk 0:00:08]} 50. f4+ {[%clk 0:00:21]}  Kf6 {[%clk 0:00:08]} 51. Rxd6+ {[%clk 0:00:21]}  Kg7 {[%clk 0:00:09]} 52. b5 {[%clk 0:00:21]}  Ra7 {[%clk 0:00:09]} 53. b6 {[%clk 0:00:21]}  Ra3+ {[%clk 0:00:09]} 54. Kd4 {[%clk 0:00:22]}  Ra1 {[%clk 0:00:10]} 55. b7 {[%clk 0:00:22]}  Rd1+ {[%clk 0:00:10]} 56. Kc5 {[%clk 0:00:22]}  Rb1 {[%clk 0:00:11]} 57. Rb6 {[%clk 0:00:23]} 1-0


[Site "https://www.chess.com"]

[Event "Titled Tuesday Blitz February 28 Late 2023"]
[White "The_Sherman_Variation"]
[Black "Tsyhanchuk, Stanislav"]
[BlackFideId "13505130"]
[WhiteElo "2445"]
[BlackElo "2173"]
[Result "1-0"]
[Round "03"]
[TimeControl "180+2"]
[Date "2023.02.28"]
[WhiteClock "0:00:30"]
[BlackClock "0:00:01"]

1. Nf3 {[%clk 0:03:00]}  Nf6 {[%clk 0:02:58]} 2. c4 {[%clk 0:03:00]}  d5 {[%clk 0:02:56]} 3. cxd5 {[%clk 0:03:00]}  Nxd5 {[%clk 0:02:55]} 4. Nc3 {[%clk 0:03:01]}  Nb6 {[%clk 0:02:52]} 5. g3 {[%clk 0:02:59]}  g6 {[%clk 0:02:52]} 6. Bg2 {[%clk 0:02:58]}  Bg7 {[%clk 0:02:52]} 7. O-O {[%clk 0:02:59]}  e5 {[%clk 0:02:49]} 8. d3 {[%clk 0:02:51]}  Nc6 {[%clk 0:02:49]} 9. a4 {[%clk 0:02:48]}  a5 {[%clk 0:02:48]} 10. Be3 {[%clk 0:02:46]}  O-O {[%clk 0:02:38]} 11. Rc1 {[%clk 0:02:41]}  Be6 {[%clk 0:02:23]} 12. Nb5 {[%clk 0:02:28]}  Nd5 {[%clk 0:02:07]} 13. Bd2 {[%clk 0:02:26]}  h6 {[%clk 0:02:00]} 14. Nc3 {[%clk 0:02:24]}  Ndb4 {[%clk 0:01:58]} 15. Be3 {[%clk 0:02:20]}  f5 {[%clk 0:01:56]} 16. Qd2 {[%clk 0:02:19]}  Kh7 {[%clk 0:01:54]} 17. Bc5 {[%clk 0:02:04]}  Rf7 {[%clk 0:01:47]} 18. Nb5 {[%clk 0:01:57]}  e4 {[%clk 0:01:17]} 19. Ne1 {[%clk 0:01:42]}  b6 {[%clk 0:00:33]} 20. Be3 {[%clk 0:01:38]}  Ne5 {[%clk 0:00:31]} 21. dxe4 {[%clk 0:01:31]}  fxe4 {[%clk 0:00:25]} 22. Bxe4 {[%clk 0:01:28]}  Nc4 {[%clk 0:00:23]} 23. Qxd8 {[%clk 0:01:26]}  Rxd8 {[%clk 0:00:23]} 24. Bf4 {[%clk 0:01:21]}  c6 {[%clk 0:00:20]} 25. Nc7 {[%clk 0:01:15]}  Bd5 {[%clk 0:00:17]} 26. Nxd5 {[%clk 0:01:07]}  cxd5 {[%clk 0:00:18]} 27. Bxd5 {[%clk 0:01:08]}  Nxd5 {[%clk 0:00:16]} 28. Rxc4 {[%clk 0:01:08]}  Nxf4 {[%clk 0:00:15]} 29. gxf4 {[%clk 0:01:09]}  Bxb2 {[%clk 0:00:15]} 30. Nd3 {[%clk 0:01:10]}  Bd4 {[%clk 0:00:15]} 31. Rb1 {[%clk 0:01:08]}  Rb7 {[%clk 0:00:10]} 32. Rb5 {[%clk 0:01:06]}  Rdd7 {[%clk 0:00:09]} 33. Rc6 {[%clk 0:00:54]}  Rdc7 {[%clk 0:00:03]} 34. Rd6 {[%clk 0:00:52]}  Rd7 {[%clk 0:00:03]} 35. Rbd5 {[%clk 0:00:50]}  Rxd6 {[%clk 0:00:02]} 36. Rxd6 {[%clk 0:00:51]}  Bg7 {[%clk 0:00:02]} 37. Rd5 {[%clk 0:00:50]}  Rc7 {[%clk 0:00:03]} 38. Rb5 {[%clk 0:00:50]}  Bd4 {[%clk 0:00:03]} 39. Kg2 {[%clk 0:00:50]}  Rc2 {[%clk 0:00:02]} 40. Kf3 {[%clk 0:00:49]}  Ra2 {[%clk 0:00:03]} 41. e3 {[%clk 0:00:48]}  Bc5 {[%clk 0:00:03]} 42. Nxc5 {[%clk 0:00:48]}  bxc5 {[%clk 0:00:04]} 43. Rxa5 {[%clk 0:00:49]}  c4 {[%clk 0:00:04]} 44. Kg3 {[%clk 0:00:49]}  c3 {[%clk 0:00:04]} 45. Rc5 {[%clk 0:00:49]}  c2 {[%clk 0:00:05]} 46. a5 {[%clk 0:00:49]}  h5 {[%clk 0:00:05]} 47. a6 {[%clk 0:00:49]}  Kh6 {[%clk 0:00:05]} 48. a7 {[%clk 0:00:49]}  Rxa7 {[%clk 0:00:05]} 49. Rxc2 {[%clk 0:00:49]}  Ra3 {[%clk 0:00:03]} 50. Rc7 {[%clk 0:00:48]}  Ra1 {[%clk 0:00:03]} 51. h4 {[%clk 0:00:42]}  Rg1+ {[%clk 0:00:03]} 52. Kf3 {[%clk 0:00:41]}  Rg4 {[%clk 0:00:03]} 53. e4 {[%clk 0:00:40]}  Rxh4 {[%clk 0:00:03]} 54. e5 {[%clk 0:00:40]}  Rh3+ {[%clk 0:00:03]} 55. Ke4 {[%clk 0:00:40]}  h4 {[%clk 0:00:03]} 56. e6 {[%clk 0:00:40]}  Rh1 {[%clk 0:00:02]} 57. Ke5 {[%clk 0:00:34]}  Re1+ {[%clk 0:00:02]} 58. Kf6 {[%clk 0:00:35]}  h3 {[%clk 0:00:02]} 59. Rc3 {[%clk 0:00:31]}  Kh5 {[%clk 0:00:01]} 60. Rxh3+ {[%clk 0:00:29]}  Kg4 {[%clk 0:00:01]} 61. Re3 {[%clk 0:00:30]} 1-0


[Site "https://www.chess.com"]

[Event "Titled Tuesday Blitz February 28 Late 2023"]
[White "Michalski, Olaf"]
[Black "Sanchez, Robert"]
[WhiteFideId "1106740"]
[BlackFideId "2034360"]
[WhiteElo "2173"]
[BlackElo "2436"]
[Result "0-1"]
[Round "03"]
[TimeControl "180+2"]
[Date "2023.02.28"]
[WhiteClock "0:00:51"]
[BlackClock "0:01:39"]

1. d4 {[%clk 0:02:57]}  Nf6 {[%clk 0:02:57]} 2. Nf3 {[%clk 0:02:56]}  e6 {[%clk 0:02:57]} 3. Bf4 {[%clk 0:02:56]}  d5 {[%clk 0:02:56]} 4. e3 {[%clk 0:02:55]}  c5 {[%clk 0:02:56]} 5. c4 {[%clk 0:02:45]}  cxd4 {[%clk 0:02:54]} 6. exd4 {[%clk 0:02:45]}  Nc6 {[%clk 0:02:52]} 7. Nc3 {[%clk 0:02:42]}  Bb4 {[%clk 0:02:49]} 8. c5 {[%clk 0:02:30]}  Ne4 {[%clk 0:02:44]} 9. Bd2 {[%clk 0:02:23]}  Nxd2 {[%clk 0:02:17]} 10. Qxd2 {[%clk 0:02:20]}  O-O {[%clk 0:02:15]} 11. a3 {[%clk 0:01:57]}  Ba5 {[%clk 0:02:15]} 12. b4 {[%clk 0:01:52]}  Bc7 {[%clk 0:02:15]} 13. b5 {[%clk 0:01:47]}  Ne7 {[%clk 0:02:14]} 14. Bd3 {[%clk 0:01:44]}  f5 {[%clk 0:02:11]} 15. O-O {[%clk 0:01:41]}  Ng6 {[%clk 0:02:11]} 16. Rfe1 {[%clk 0:01:26]}  Qf6 {[%clk 0:02:03]} 17. b6 {[%clk 0:01:15]}  axb6 {[%clk 0:01:58]} 18. cxb6 {[%clk 0:01:06]}  Bxb6 {[%clk 0:01:53]} 19. Nb5 {[%clk 0:01:04]}  Bd7 {[%clk 0:01:44]} 20. Ne5 {[%clk 0:00:59]}  Nxe5 {[%clk 0:01:41]} 21. Rxe5 {[%clk 0:00:51]}  Bxd4 {[%clk 0:01:39]} 0-1


[Site "https://www.chess.com"]